Cogmind - Beta 14 @@@ ROGUE MODE // 2024.08.13 @ 07:09:04 Player: Lillith Result: Destroyed by BL-RRT(R) with Subdweller Beam Cannon Performance ------------- Evolutions (0) 0 Regions Visited (2) 400 Robots Destroyed (23) 115 Value Destroyed (745) 745 Prototype IDs (3) 60 Alien Tech Used (0) 0 Bonus (0) 0 TOTAL SCORE: 1320 Bonus ------- None Cogmind --------- Core Integrity 0/250 Matter 236/300 Energy 246/250 System Corruption 2% Temperature Cool (9) Movement Treading (160) Location -10/Subcaves Parts ------- > --- POWER (1) -------- Ion Engine > --- PROPULSION (2) --- Light Treads Light Treads > --- UTILITY (2) ------ Small Storage Unit Light Armor Plating > --- WEAPON (2) ------- Subdweller Machine Gun Battle Cannon > --- INVENTORY (8) ---- Ion Engine Light Treads Beam Cannon Beam Cannon Subdweller Machine Gun Subdweller Machine Gun Grenade Launcher Grenade Launcher Peak State ------------ > --- POWER ------------ Ion Engine > --- PROPULSION ------- Light Treads Light Treads > --- UTILITY ---------- Small Storage Unit Light Armor Plating > --- WEAPON ----------- Subdweller Machine Gun Battle Cannon > --- INVENTORY -------- Ion Engine Light Treads Beam Cannon Beam Cannon Subdweller Machine Gun Subdweller Machine Gun Grenade Launcher Grenade Launcher [Rating: 10] Favorites ----------- Power Ion Engine Engine Ion Engine Propulsion Light Treads Treads Light Treads Wheel Wheel Utility Small Storage Unit Device Heat Sink Storage Small Storage Unit Protection Light Armor Plating Weapon Light Assault Rifle Energy Cannon Beam Cannon Ballistic Gun Light Assault Rifle Ballistic Cannon Battle Cannon Launcher Grenade Launcher Build | -11 -10 -10 ------- Run | Yrd Mat Sub Slots Evolved . | . . . Power . | . . . Propulsion . | . . . Utility . | . . . Weapon . | . . . Parts Attached 26 | 6 9 11 Power 3 | 1 2 . Engine 3 | 1 2 . Core . | . . . Reactor . | . . . Propulsion 5 | 2 2 1 Treads 3 | . 2 1 Leg . | . . . Wheel 2 | 2 . . Hover . | . . . Flight . | . . . Utility 4 | 1 2 1 Device 1 | . 1 . Storage 1 | 1 . . Processor . | . . . Hackware . | . . . Protection 2 | . 1 1 Artifact . | . . . Weapon 14 | 2 3 9 Energy Gun . | . . . Energy Cannon 3 | . 1 2 Ballistic Gun 6 | 2 1 3 Ballistic Cannon 1 | . . 1 Launcher 4 | . 1 3 Special Weapon . | . . . Impact Weapon . | . . . Slashing Weapon . | . . . Piercing Weapon . | . . . Special Melee Weapon . | . . . Unidentified Prototypes . | . . . Parts Lost 3 | . . 3 Power . | . . . Propulsion 1 | . . 1 Utility 1 | . . 1 Weapon 1 | . . 1 Highest Loss Streak 2 | . . 2 To Critical Strikes . | . . . Average Slot Usage (%) 97 | . 94 99 Engine 14 | . 14 14 Treads 27 | . 27 27 Device 2 | . 4 . Storage 14 | . 14 14 Protection 9 | . 5 14 Energy Cannon 10 | . 9 11 Ballistic Gun 15 | . 16 13 Ballistic Cannon 1 | . . 2 Peak Build Rating 10 | 6 7 10 Average Rating 7 | 4 6 7 On Entrance 4 | . 6 7 Naked Turns . | . . . Heaviest Build 20 | 10 17 20 Greatest Support 40 | 20 40 40 Greatest Overweight (x) . | . . . Average Overweight (x) . | . . . Largest Inventory Capacity 8 | 8 8 8 Average Capacity 7 | 6 8 8 Most Carried 8 | 4 8 8 Average Carried 7 | 2 7 7 Final Capacity 8 | 8 8 8 Final Carried 8 | 4 8 8 Class Distribution -------------------- 100% | Mutant Dominant Class ---------------- Mutant | -10/Materials Mutant | -10/Subcaves Resources | -11 -10 -10 ----------- Run | Yrd Mat Sub Matter Collected 648 | 177 282 189 Remotely . | . . . Salvage Created 855 | . 663 192 Parts 44 | . 32 12 Haulers Intercepted 2 | . 2 . Recyclers Shooed . | . . . Parts Field Recycled . | . . . Retrieved Matter . | . . . Parts Self-Destructed . | . . . Prevented . | . . . Kills | -11 -10 -10 ------- Run | Yrd Mat Sub Combat Hostiles Destroyed 21 | . 15 6 Guns 6 | . 4 2 Cannons 12 | . 10 2 AOE 3 | . 1 2 Classes Destroyed 4 | . 3 1 Hauler 2 | . 2 . Swarmer 2 | . 2 . Grunt 13 | . 13 . Subdweller 6 | . . 6 Best Kill Streak 3 | . 3 2 Combat Bots Only 3 | . 3 2 Max Kills in Single Turn 2 | . 2 2 Gunslinging . | . . . Exploded 1 | . 1 1 Melee . | . . . Uniques/NPCs Destroyed . | . . . Combat | -11 -10 -10 -------- Run | Yrd Mat Sub Hostile Shots Fired 88 | . 53 35 Missed 21 | . 10 11 Damage Taken 1129 | . 557 572 Core 252 | . 84 168 Absorbed by Shields . | . . . Core Remaining (%) 100 | 100 . . Volleys Fired 84 | . 48 36 Largest 2 | . 2 2 Hottest 90 | . 80 90 Shots Fired 152 | . 96 56 Gun 80 | . 61 19 Cannon 63 | . 32 31 Launcher 9 | . 3 6 Special . | . . . Kinetic 88 | . 61 27 Thermal 55 | . 32 23 Explosive 9 | . 3 6 Electromagnetic . | . . . Robot Hit Streak 17 | . 17 7 Robot Miss Streak 2 | . 2 2 Penetration Max . | . . . Secondary Targets . | . . . Shots Hit Robots 91 | . 65 26 Core Hits 42 | . 30 12 Critical Kills 1 | . . 1 Critical Parts Destroyed 1 | . 1 . Critical Strikes 2 | . 1 1 Destroy 2 | . 1 1 Melee Attacks . | . . . Impact . | . . . Slashing . | . . . Piercing . | . . . Sneak Attacks . | . . . Combat Hostiles . | . . . Follow-up Attacks . | . . . Damage Inflicted 1700 | . 949 751 Guns 560 | . 312 248 Cannons 642 | . 454 188 Explosions 498 | . 183 315 Melee . | . . . Ramming . | . . . Kinetic 626 | . 312 314 Thermal 576 | . 454 122 Explosive 498 | . 183 315 Electromagnetic . | . . . Impact . | . . . Slashing . | . . . Piercing . | . . . Highest Corruption 2 | . 2 2 Average Corruption 1 | . 1 2 Corruption Purged . | . . . Corruption Blocked . | . . . Effects 18 | . 7 11 Message Errors 4 | . 2 2 Matter Fused 5 | . 3 2 Heat Flow Errors 2 | . . 2 Energy Discharges 3 | . 1 2 Data Loss (minor) 1 | . . 1 Misfires 1 | . 1 . Weapon Failures 2 | . . 2 Overload Shots . | . . . Overflow Damage . | . . . Projectiles . | . . . Explosions . | . . . Melee . | . . . Knockbacks 2 | . . 2 Impact . | . . . Kinetic 2 | . . 2 Secondary . | . . . Self-Inflicted Damage 28 | . 8 20 Shots 3 | . 1 2 Rammed . | . . . Targets Rammed . | . . . Kicked . | . . . Crushed . | . . . Highest Temperature 201 | . 176 201 Average Temperature 58 | . 55 77 Received Heat Transfer 369 | . 285 84 Siege Activations . | . . . Robots Corrupted . | . . . Combat Hostiles . | . . . Parts Fried . | . . . Impact Corruptions . | . . . Robots Melted . | . . . Combat Hostiles . | . . . Parts Melted 3 | . 3 . Heat Transferred 1221 | . 962 259 Parts Sabotaged . | . . . Parts Stolen . | . . . Parts Stripped . | . . . Power Chain Reactions . | . . . Alert | -11 -10 -10 ------- Run | Yrd Mat Sub Peak Influence 208 | . 208 . Initial . | . . . Average 101 | . 106 . Maximum Alert Level 1 | . 1 . Low Security (%) 92 | 100 92 . Level 1 7 | . 7 . Level 2 . | . . . Level 3 . | . . . Level 4 . | . . . Level 5 . | . . . High Security . | . . . Max Security . | . . . Squads Dispatched 3 | . 3 . Investigation 1 | . 1 . Extermination . | . . . Reinforcement 2 | . 2 . Assault . | . . . Garrison . | . . . Intercept . | . . . Searches Triggered . | . . . Construction Impeded . | . . . Haulers Reinforced . | . . . Active Scanning Responses . | . . . Cargo Convoy Interrupts . | . . . Stealth | -11 -10 -10 --------- Run | Yrd Mat Sub Distress Signals 3 | . 3 . Communications Jammed . | . . . Distress Signals . | . . . Times Spotted 29 | . 22 7 Peak Tracking Total 6 | . 6 2 Tactical Retreats 2 | . 2 . Traps | -11 -10 -10 ------- Run | Yrd Mat Sub Traps Triggered 3 | . 3 . Indirectly . | . . . Trap Hack Attempts . | . . . Triggered . | . . . Disarmed . | . . . Reprogrammed . | . . . Reused . | . . . Traps Extracted . | . . . Installed . | . . . Triggered . | . . . Machines | -11 -10 -10 ---------- Run | Yrd Mat Sub Machines Disabled . | . . . Max in Single Turn . | . . . Machines Repaired . | . . . Machines Dismantled . | . . . Machines Sabotaged . | . . . Overloaded Fab Kills . | . . . Hacking | -11 -10 -10 --------- Run | Yrd Mat Sub Machines Accessed 4 | . 3 1 Terminals 2 | . 2 . Fabricators . | . . . Repair Stations . | . . . Recycling Units 1 | . 1 . Scanalyzers . | . . . Garrison Access . | . . . Total Hacks 12 | . 9 3 Successful 7 | . 4 3 Failed 5 | . 5 . Catastrophic . | . . . Database Lockouts . | . . . Manual . | . . . Terminals 5 | . 5 . Fabricators . | . . . Repair Stations . | . . . Recycling Units 4 | . 4 . Scanalyzers . | . . . Garrison Access . | . . . Terminal Hacks 6 | . 3 3 Record 3 | . . 3 Robot Analysis 1 | . 1 . Prototype ID Bank 2 | . 2 . Fabricator Hacks . | . . . Repair Station Hacks . | . . . Recycling Unit Hacks 1 | . 1 . Report Inventory 1 | . 1 . Scanalyzer . | . . . Garrison Access Hacks . | . . . Unauthorized Hacks . | . . . Terminals . | . . . Fabricators . | . . . Repair Stations . | . . . Recycling Units . | . . . Scanalyzers . | . . . Garrison Access . | . . . Data Cores Recovered . | . . . Used . | . . . Hacking Detections 2 | . 2 . Full Trace Events 1 | . 1 . Feedback Events . | . . . Feedback Blocked . | . . . Robot Schematics Acquired . | . . . Robots Built . | . . . Authchips . | . . . Time . | . . . Total Robot Build Rating . | . . . Part Schematics Acquired . | . . . Parts Built . | . . . Authchips . | . . . Time . | . . . Total Part Build Rating . | . . . Parts Repaired . | . . . Time . | . . . Parts Recycled . | . . . Recycled Matter . | . . . Retrieved Matter . | . . . Retrieved Components . | . . . Parts Scanalyzed . | . . . Part Schematics Acquired . | . . . Parts Damaged . | . . . Bothacking | -11 -10 -10 ------------ Run | Yrd Mat Sub Used RIF Installer . | . . . Robots Hacked . | . . . Non-combat . | . . . Combat . | . . . Robot Hacks Applied . | . . . Relay Couplers Released . | . . . Fabnet Peak Effective % . | . . . Robots Rewired . | . . . Allies Hacked . | . . . Hacks Repelled . | . . . Allies | -11 -10 -10 -------- Run | Yrd Mat Sub Total Allies . | . . . Largest Group . | . . . Highest-Rated Group . | . . . Highest-Rated Ally . | . . . Total Orders . | . . . Ally Attacks . | . . . Total Damage . | . . . Kills . | . . . Allies Corrupted . | . . . Allies Melted . | . . . Intel | -11 -10 -10 ------- Run | Yrd Mat Sub Robot Analysis Total 1 | . 1 . Derelict Logs Recovered 1 | . . 1 Drone Launches . | . . . Drone Recoveries . | . . . Exploration | -11 -10 -10 ------------- Run | Yrd Mat Sub Turns Passed 2067 | 51 1033 983 Spaces Moved 1022 | 49 433 540 Core 3 | 3 . . Treads 956 | . 416 540 Legs . | . . . Wheels 63 | 46 17 . Hover . | . . . Flight . | . . . Fastest Speed 50 | 50 80 160 Average Speed 154 | 78 156 160 Slowest Speed 160 | 80 160 160 Overloaded Moves . | . . . Propulsion Burnouts . | . . . Robots Hopped . | . . . Cave-ins Triggered . | . . . Exploration Rate (%) 37 | 4 74 33 Regions Visited 2 Branch Regions 1 Pre-discovered Areas 1 | . . 1 Known Exits Taken . | . . . Unknown Exits Taken 2 | 1 1 . Scrap Searched 1 | . . 1 Spaces Dug . | . . . Terrain Destroyed 69 | . 24 45 Melee . | . . . Projectile . | . . . AOE 69 | . 24 45 Terrain Rammed . | . . . Walls Destroyed . | . . . Machines Disabled . | . . . Actions | -11 -10 -10 --------- Run | Yrd Mat Sub Total 1364 | 58 706 600 Wait 207 | . 198 9 Move 1020 | 48 432 540 Hop . | . . . Pick Up 16 | 4 9 3 Fast Attach 8 | 6 2 . Attach 5 | . 2 3 Detach 2 | . 2 . Swap 13 | . 5 8 Drop 9 | . 8 1 Fire 84 | . 48 36 Melee . | . . . Ram . | . . . Kick . | . . . Crush . | . . . Escape Stasis . | . . . Rewire . | . . . Trap . | . . . Miscellaneous . | . . . Route ------- -11/Scrapyard -10/Materials (discovered 4 exits: [*Mat x2] / [*Min] / *Sub) -10/Subcaves (discovered 1 exit: [*Mat]) History --------- Turn | Location | Event 12 | -11/Scrapyard | Discovered new exit (range 16) 52 | -11/Scrapyard | Entered Materials 195 | -10/Materials | Discovered new exit (range 15) 336 | -10/Materials | Build established: Mutant 347 | -10/Materials | Discovered new exit (range 16) 716 | -10/Materials | Discovered new exit (range 10) 1051 | -10/Materials | Discovered new exit (range 6) 1085 | -10/Materials | Entered Subcaves 1138 | -10/Subcaves | Discovered new exit (range 10) 1184 | -10/Subcaves | A swath of the cavern ceiling suddenly collapsed 1367 | -10/Subcaves | Core integrity fell below 50% 1470 | -10/Subcaves | Visited Clippyterm 1475 | -10/Subcaves | Learned location of Section 7 (-3) 1475 | -10/Subcaves | Learned Factory garrison access intel 1804 | -10/Subcaves | Shifting Twisted Machinery released Battle Cannon 1868 | -10/Subcaves | Shifting Twisted Machinery released Sub. Power Source 1949 | -10/Subcaves | Learned Materials trap positions 2057 | -10/Subcaves | Core integrity fell below 20% 2068 | -10/Subcaves | Destroyed by BL-RRT(R) with Subdweller Beam Cannon Last Messages --------------- 01791_ The unstable cave ceiling collapses. Battle Cannon falls loose from the Twisted Machinery. 01834_ The unstable cave ceiling collapses. 01837_ System corrupted: Matter fused (-7). 01845_ 2H-YBR(u) builds Twisted Machinery. 01861_ System corrupted: Heat flow error (+236). Sub. Power Source falls loose from the Twisted Machinery. 01877_ Acquired Battle Cannon. 01949_ Acquired derelict log, extracted data. Data stored: Materials trap records. 01970_ System corrupted: Energy discharge (-80). 01995_ Searching scrap... 01995_ Found Sub. Machine Gun. 01995_ Found 61 Matter. 01996_ Acquired 61 matter. 02039_ System corrupted: Component data lost. 02042_ BL-RRT(R) knocked back. 02051_ System corrupted: Battle Cannon jammed. 02056_ System corrupted: Energy discharge (-87). 02068_ BL-RRT(R) knocked back. Map ----- +----------------------------------------------------+ | ##?# ##????# " ## ### ##?????????????? | | ????###????##""" ### ##### ##??????????????? | | ???????????#"""""#?## #???? ## ##???????????????? | | ############ """#??## ##???##?##????????????????? | | # # # # ## " #### ####?????????????????????? | | #?????????????????????? | | #????????????????????? | | ## # # #????????????????????? | | ############ ## #????????????????????? | | ???????????## #?#######? ??????????????????? | | ????????????# #??????? ??????????????????? | | ????????????# ##?????## ??? #??????????????? | | ????????????## ##?????# ??? #??????????????? | | ?????????????## #??#### ?? #??????????????? | | ??????????????# #### ?? #??????????????? | | ?????????????? #? #??????????????? | | #???????????? ## #??????????????? | | ##?????????? #???????????????? | | ## ##??????????????? | | #?? ## ? ##?????????????? | | ## #????# ??### %% #?????????????? | | ???????? #????????### ; #?????????????? | | ??????????????????# ### "" #?????????????? | | ??????????????????# R ########????????????????? | | ??????????????????# ##???######?????????????? | | ??????????????????# % @##### ##????????????? | | ??????????????????# #????????????? | | ?###????????????### ## #????????????? | | ## ##########???#"# ## ###????????????? | | # # ##??#"""" #??????????????? | | #### """" ##?????????????? | | #### # # ## # """" ##????????????? | | # ##??###""""" ### """ #????????????? | | # #???## """"# ### " #????????????? | | ##???## # # #????????????? | | #????# "" # """" ### ##???????????? | | ##????###"" ### " " ##?# #???????????? | | #???????# #?## " ## # #??# #???????????? | | ????????# #### "##### #??# ##???????????? | | ????????## ## ## #???# ##??# #????????????? | | ?????????# ## ##### ????# ##????????????? | | ????????## # ## ## #????## ##????????????? | | ???????##""# # ####??????# #????????????? | | ??????##"""" #????????# #????????????? | | ?????##"" ## # ####????????# ##????????????? | | ?????#""" ## #####???????????# ##?????????????? | | ??????# "" ## #??????????????# #?????????????? | | ??????# """ ##?????????????# ## ##????????????? | | ??????# "*"## ##?????????????# #?## #????????????? | | ??????# #######??????????????##???###????????????? | +----------------------------------------------------+ Best States ------------- Heat Dissipation 35 Energy Generation 10 Energy Capacity 250 Matter Stores 300 Matter Capacity 300 Sight Range 16 Terrain Scan Density 10 Armor Coverage 150 Evasion (%) 44 Recoil Reduction 2 Item Schematics ----------------- None Robot Schematics ------------------ None Fabricated ------------ Nothing Alien Tech Used ----------------- None Achievements -------------- None Challenges ------------ None Game ------ Seed CoolingScatterGun Manual? 0 Play Time 00:18:44 Cumulative 15.2 hours Start 2024.08.13 @ 06:35:59 End 2024.08.13 @ 07:09:04 Sessions 1 Manual Loads 0 Difficulty Rogue Special Mode None Game No. 28 Rogue 28 Adventurer 0 Explorer 0 Win Type - Total 0 Types 0/0/0/0/0/0/0/0/0 Lore% 23 Gallery% 19 Achievement% 18 Wizard Run 0 Options --------- Layout 0 ASCII 0 Keyboard 1 Movement Arrows Keybinds 0 Fullscreen 2 Font 24/Smallcaps Map View 76x50 Zoom Use 0% Tactical HUD 1 Map Filters NONE Filters NONE Steam 1 RUN: 60be9a15-97f5-468c-baa9-3692d1f9046d